Workbook

Sheet Prihodi (hidden)
C23: Rashodi:
C24: Neutrošena sredstva:

Sheet Rashodi
B1: SS CENTAR ZA ODGOJ I OBRAZOVANJE
B2: Zagorska 14 ZAGREB
B3: OIB 66687839353
B6: Na temelju čl. 20 st.1 Zakona o javnoj nabavi i Statuta škole ,na sjednici Školskog odbora
C7: održanoj 14.12.2015. godine, donesen je
D10: PLAN NABAVE ZA 2016. GODINU
C11: (bez poreza na dodanu vrijednost)
A15: Red.br. | B15: Pozicija plana (konto) | C15: Predmet nabave | D15: NAZIV | E15: Procjenjena vrijdnost nabave | F15: Plan 2011. | G15: Plan 2012. | H15: PLAN 2011. | I15: PLAN 2012. | J15: Gradski proračun | K15: Ostali prihodi | L15: Postupak i način nabave | M15: procjenjena vriejd.bez PDV-a | N15: pdv | O15: planirana vrijdnost nabave sa PDV-om | P15: Plan 2011. | Q15: Plan 2012. | R15: PLAN 2011. | S15: PLAN 2012. | T15: IZVOR Gradski proračun | U15: SREDSTAVA Ostali prihodi | V15: Postupak i način nabave
A16: 1 | C16: NAKNADA TROŠKOVA ZAPOSLENIMA | M16: =SUM(M17:M18) -> 16800 | N16: =SUM(N17:N18) -> 4200 | O16: =SUM(O17:O18) -> 21000 | P16: =SUM(P17:P17) -> 12250 | Q16: =SUM(Q17:Q17) -> 12600 | R16: =SUM(R17:R17) -> 7000 | S16: =SUM(S17:S17) -> 7000 | T16: =SUM(T17:T18) -> 21000 | U16: =SUM(U17:U18) -> 0
A17: 2 | B17: 32131 | C17: Seminari, savjetovanja i simpoziji | D17: Stručno usavršavanje | E17: 8000 | F17: 12250 | G17: 12600 | H17: 7000 | I17: 7000 | J17: 8000 | K17: 0 | M17: =SUM(O17-N17) -> 13600 | N17: =O17*20/100 -> 3400 | O17: 17000 | P17: 12250 | Q17: 12600 | R17: 7000 | S17: 7000 | T17: 17000 | U17: =SUM(O17-T17) -> 0 | V17: usluge IIB
B18: 32132 | C18: Tečajevi i stručni ispiti | D18: Stručno usavršavanje | M18: =SUM(O18-N18) -> 3200 | N18: =O18*20/100 -> 800 | O18: 4000 | T18: 4000 | U18: 0 | V18: usluge IIB
A19: 3 | C19: NABAVA ZA MATERIJAL I ENERGIJU | M19: =SUM(O19-N19) -> 328240 | N19: =SUM(N20:N33) -> 82060 | O19: =SUM(O20:O33) -> 410300 | P19: =SUM(P20:P32) -> 576900 | Q19: 595300 | R19: 333000 | S19: 345000 | T19: =SUM(T20:T33) -> 313300 | U19: 97000
A20: 4 | B20: 32211 | C20: Uredski materijal | D20: Razni uredski materijal | E20: 24000 | F20: 25500 | G20: 26200 | H20: 15000 | I20: 16000 | J20: 21400 | K20: 2600 | L20: Izrav.ugovar. | M20: 36000 | N20: =O20*20/100 -> 9000 | O20: 45000 | P20: 25500 | Q20: 26200 | R20: 15000 | S20: 16000 | T20: 5000 | U20: 40000 | V20: Izrav.ugovar.
A21: 5 | B21: 32212 | C21: Literatura | D21: Knjige, časopisi, brošure, | E21: 10000 | F21: 12250 | G21: 12600 | H21: 7000 | I21: 7000 | J21: 10000 | L21: Izrav.ugovar. | M21: 6400 | N21: 1600 | O21: 8000 | P21: 12250 | Q21: 12600 | R21: 7000 | S21: 7000 | T21: 8000 | U21: 0 | V21: Izrav.ugovar.
A22: 6 | B22: 32214 | C22: Mat.i sredstva za čišćenje i održ. | D22: Sred.za čišćenje | E22: 8300 | F22: 112400 | G22: 115500 | H22: 65000 | I22: 67000 | J22: 5300 | K22: 3000 | L22: Izrav.ugovar. | M22: 6400 | N22: 1600 | O22: 8000 | P22: 112400 | Q22: 115500 | R22: 65000 | S22: 67000 | T22: 8000 | U22: 0 | V22: Izrav.ugovar.
A23: 8 | B23: 32216 | C23: Mat. za hig.potrebe i njegu | D23: wc papir,tek sapun, papirn.ručnici | E23: 10000 | F23: 15300 | G23: 15700 | H23: 9000 | I23: 9000 | J23: 10000 | L23: Izrav.ugovar. | M23: 4480 | N23: 1120 | O23: 5600 | P23: 15300 | Q23: 15700 | R23: 9000 | S23: 9000 | T23: 5600 | U23: 0 | V23: Izrav.ugovar.
A24: 9 | B24: 32219 | C24: Ost.mat.za potrebe red.poslovanja | D24: Ostali razni materijal | E24: 4000 | F24: 4100 | G24: 4200 | H24: 2000 | I24: 3000 | J24: 4000 | L24: Izrav.ugovar. | M24: 18400 | N24: 4600 | O24: 23000 | P24: 4100 | Q24: 4200 | R24: 2000 | S24: 3000 | T24: 23000 | U24: 0 | V24: Izrav.ugovar.
A25: 10 | B25: 32222 | C25: Pomoćni materijal | D25: mat. Za knjgov. radno i zadr. | E25: 50600 | F25: 53200 | G25: 57300 | H25: 31000 | I25: 33000 | J25: 30176 | K25: 20424 | L25: Izrav.ugovar. | M25: =SUM(O25-N25) -> 20000 | N25: 5000 | O25: 25000 | P25: 53200 | Q25: 57300 | R25: 31000 | S25: 33000 | T25: 20000 | U25: 5000 | V25: Izrav.ugovar.
A26: 11 | B26: 32224 | C26: Namirnice | D26: mat.za šk. Kuhinju | M26: =SUM(O26-N26) -> 77600 | N26: =O26*20/100 -> 19400 | O26: 97000 | T26: 50000 | U26: 47000 | V26: Izrav.ugovar.
A27: 12 | B27: 32231 | C27: Električna energija | D27: Električna energija | E27: 65000 | F27: 66150 | G27: 67900 | H27: 38000 | I27: 40000 | J27: 55000 | K27: 10000 | L27: Izrav.ugovar. | M27: =SUM(O27-N27) -> 20000 | N27: 5000 | O27: 25000 | P27: 66150 | Q27: 67900 | R27: 38000 | S27: 40000 | T27: 25000 | U27: =SUM(O27-T27) -> 0 | V27: Izrav.ugovar.
A28: 13 | B28: 32232 | C28: Topla voda(toplana) | D28: topla voda -toplana | E28: 135000 | F28: 137300 | G28: 141100 | H28: 79000 | I28: 81000 | J28: 125000 | K28: 10000 | L28: Izrav.ugovar. | M28: 80000 | N28: 20000 | O28: 100000 | P28: 137300 | Q28: 141100 | R28: 79000 | S28: 81000 | T28: 100000 | U28: 0 | V28: Izrav.ugovar.
A29: 14 | B29: 32241 | C29: Mat.i dij.za tek.i inv.održ.građ. | D29: Boje , parket,pločice i dr.mat. | E29: 97000 | F29: 112900 | G29: 116000 | H29: 65000 | I29: 67000 | J29: 97000 | L29: Izrav.ugovar. | M29: 24000 | N29: 6000 | O29: 30000 | P29: 112900 | Q29: 116000 | R29: 65000 | S29: 67000 | T29: 30000 | U29: 0 | V29: Izrav.ugovar.
A30: 15 | B30: 32242 | C30: Mat.i dij.za tek.i inv.održ.postr.i opr. | D30: Mat.i dij.za održ.postr.i opr. | E30: 20000 | F30: 20400 | G30: 20900 | H30: 12000 | I30: 12000 | J30: 20000 | L30: Izrav.ugovar. | M30: 24000 | N30: 6000 | O30: 30000 | P30: 20400 | Q30: 20900 | R30: 12000 | S30: 12000 | T30: 25000 | U30: 5000 | V30: Izrav.ugovar.
A31: 16 | B31: 32243 | C31: Mat.i dij.za tek.i inv.održ.trans.sred. | D31: razni dijel. | E31: 7000 | F31: 7200 | G31: 7400 | H31: 4000 | I31: 4000 | J31: 7000 | L31: Izrav.ugovar. | M31: 0 | N31: 0 | O31: 0 | P31: 7200 | Q31: 7400 | R31: 4000 | S31: 4000 | T31: 0 | U31: 0 | V31: Izrav.ugovar.
A32: 17 | B32: 32251 | C32: Sitni inventar | D32: Oprema za ustanovu | E32: 10000 | F32: 10200 | G32: 10500 | H32: 6000 | I32: 6000 | J32: 10000 | L32: Izrav.ugovar. | M32: 2960 | N32: 740 | O32: 3700 | P32: 10200 | Q32: 10500 | R32: 6000 | S32: 6000 | T32: 3700 | U32: 0 | V32: Izrav.ugovar.
A33: 7 | B33: 32271 | C33: Služb, radna i zaš.odjeća i obuća | D33: Radna odjeća i obuća | E33: 25000 | F33: 34200 | G33: 35100 | H33: 20000 | I33: 21000 | J33: 25000 | L33: Izrav.ugovar. | M33: 8000 | N33: 2000 | O33: 10000 | P33: 34200 | Q33: 35100 | R33: 20000 | S33: 21000 | T33: 10000 | U33: =SUM(O33-T33) -> 0 | V33: Izrav.ugovar.
A34: 18 | C34: NABAVA USLUGA | M34: 158240 | N34: =SUM(N35:N59) -> 39560 | O34: =SUM(O35:O59) -> 197800 | P34: =SUM(P35:P59) -> 355262.9 | Q34: 364864.4983 | R34: 207170.9038 | S34: 214229.5183 | T34: 168800 | U34: 29000
A35: 19 | B35: 32311 | C35: Usluge telefona, telefaksa | D35: Telekom | E35: 28000 | F35: 28500 | G35: 29300 | H35: 17000 | I35: 17000 | J35: 28000 | L35: Izrav.ugovar. | M35: 24000 | N35: 6000 | O35: 30000 | P35: 28500 | Q35: 29300 | R35: 17000 | S35: 17000 | T35: 30000 | U35: =SUM(O35-T35) -> 0 | V35: Izrav.ugovar.
A36: 20 | B36: 32312 | C36: Usluge interneta | D36: Internet | M36: 1600 | N36: 400 | O36: 2000 | T36: 2000 | U36: =SUM(O36-T36) -> 0 | V36: Izrav.ugovar.
A37: 21 | B37: 32313 | C37: Poštarina (pisma, tiskanice i sl.) | D37: Poštanske usluge | E37: 5000 | F37: 5100 | G37: 5300 | H37: 3000 | I37: 3000 | J37: 5000 | L37: Izrav.ugovar. | M37: 1600 | N37: 400 | O37: 2000 | P37: 5100 | Q37: 5300 | R37: 3000 | S37: 3000 | T37: 2000 | U37: 0 | V37: Izrav.ugovar.
B38: 32319 | C38: Ostale usl. za komunikaciju i prijevoz | D38: Prijevozničke usluge | M38: 3200 | N38: 800 | O38: 4000 | T38: 4000 | U38: 0 | V38: Izrav.ugovar.
A39: 22 | B39: 32321 | C39: Usl.tek.i inv.održ.građ.objekata | D39: Održavanje objekata | E39: 75000 | F39: 76300 | G39: 78400 | H39: 44000 | I39: 45000 | J39: 75000 | L39: Izrav.ugovar. | M39: 20000 | N39: 5000 | O39: 25000 | P39: 76300 | Q39: 78400 | R39: 44000 | S39: 45000 | T39: 25000 | U39: 0 | V39: Izrav.ugovar.
A40: 23 | B40: 32322 | C40: Usl.tek.i inv.održ.postroj.i opreme | D40: Održavanej opreme | E40: 57000 | F40: 58000 | G40: 59600 | H40: 33000 | I40: 35000 | J40: 57000 | L40: Izrav.ugovar. | M40: 16000 | N40: 4000 | O40: 20000 | P40: 58000 | Q40: 59600 | R40: 33000 | S40: 35000 | T40: 20000 | U40: 0 | V40: Izrav.ugovar.
A41: 24 | B41: 32331 | C41: Elektronski mediji | D41: Elektronski mediji | E41: 0 | F41: =SUM(E41*1.7/100)+E41 -> 0 | G41: =SUM(F41*2.7/100)+F41 -> 0 | H41: =SUM(F41/26*15) -> 0 | I41: =SUM(G41/26*15) -> 0 | J41: 0 | L41: Izrav.ugovar. | M41: 1600 | N41: 400 | O41: 2000 | P41: =SUM(O41*1.7/100)+O41 -> 2034 | Q41: =SUM(P41*2.7/100)+P41 -> 2088.918 | R41: =SUM(P41/26*15) -> 1173.461538 | S41: =SUM(Q41/26*15) -> 1205.145 | T41: 2000 | U41: 0 | V41: Izrav.ugovar.
B42: 32332 | C42: Tisak | D42: Tisak | M42: =SUM(O42-N42) -> 1360 | N42: 340 | O42: 1700 | P42: =SUM(O42*1.7/100)+O42 -> 1728.9 | Q42: =SUM(P42*2.7/100)+P42 -> 1775.5803 | R42: =SUM(P42/26*15) -> 997.4423077 | S42: =SUM(Q42/26*15) -> 1024.37325 | T42: 1700 | U42: =SUM(O42-T42) -> 0 | V42: Izrav.ugovar.
A43: 25 | B43: 32339 | C43: Ost.usl.promidžbe i informiranja | D43: Usluge promidžbe | E43: 7000 | F43: 7200 | G43: 7400 | H43: 4000 | I43: 5000 | J43: 7000 | L43: Izrav.ugovar. | M43: =SUM(O43-N43) -> 0 | N43: 0 | O43: 0 | P43: 7200 | Q43: 7400 | R43: 4000 | S43: 5000 | T43: 0 | U43: 0 | V43: Izrav.ugovar.
A44: 26 | B44: 32341 | C44: Opskrba vodom | D44: Pitka voda | E44: 75000 | F44: 76300 | G44: 78400 | H44: 44000 | I44: 45000 | J44: 75000 | L44: Izrav.ugovar. | M44: =SUM(O44-N44) -> 13600 | N44: 3400 | O44: 17000 | P44: 76300 | Q44: 78400 | R44: 44000 | S44: 45000 | T44: 17000 | U44: 0 | V44: Izrav.ugovar.
A45: 27 | B45: 32342 | C45: Iznošenje i odvoz smeća | D45: komunalne usluge | M45: 4640 | N45: 1160 | O45: 5800 | T45: 5800 | U45: 0 | V45: Izrav.ugovar.
A46: 28 | B46: 32343 | C46: Deratizacija i dezinsekcija | D46: Usluge deratizacije | E46: 5000 | F46: 5100 | G46: 5300 | H46: 3000 | I46: 3000 | J46: 5000 | L46: Izrav.ugovar. | M46: 1120 | N46: 280 | O46: 1400 | P46: 5100 | Q46: 5300 | R46: 3000 | S46: 3000 | T46: 1400 | U46: 0 | V46: Izrav.ugovar.
A47: 29 | B47: 32349 | C47: Ostale komunalne usluge | D47: Razne komunalne usluge | E47: 3000 | F47: 3100 | G47: 3200 | H47: 2000 | I47: 2000 | J47: 3000 | L47: Izrav.ugovar. | M47: 2080 | N47: 520 | O47: 2600 | P47: 3100 | Q47: 3200 | R47: 2000 | S47: 2000 | T47: 2600 | U47: 0 | V47: Izrav.ugovar.
A48: 30 | B48: 32361 | C48: Obvezni preventivni zdr.pregledi | D48: Razne zdrav.usluge | E48: 2000 | F48: 2050 | G48: 2100 | H48: 2000 | I48: 2000 | J48: 2000 | L48: Izrav.ugovar. | M48: 8000 | N48: 2000 | O48: 10000 | P48: 2050 | Q48: 2100 | R48: 2000 | S48: 2000 | T48: 10000 | U48: 0 | V48: Izrav.ugovar.
A49: 31 | B49: 32363 | C49: Laboratorijske usluge | D49: Brisevi | M49: 2400 | N49: 600 | O49: 3000 | T49: 3000 | U49: 0 | V49: Izrav.ugovar.
A50: 32 | B50: 32373 | C50: Usluge odvjetnika i pravnog savjetovanja | D50: Pravno savjetovanje | M50: 1200 | N50: 300 | O50: 1500 | T50: 1500 | U50: 0 | V50: Izrav.ugovar.
A51: 33 | B51: 32389 | C51: Ostale rač. usluge | D51: Održavanje prog. | E51: 9000 | F51: 9200 | G51: 9400 | H51: 5000 | I51: 6000 | J51: 9000 | L51: Izrav.ugovar. | M51: 20000 | N51: 5000 | O51: 25000 | P51: 9200 | Q51: 9400 | R51: 5000 | S51: 6000 | T51: 25000 | U51: 0 | V51: Izrav.ugovar.
A52: 34 | B52: 32391 | C52: Grafičke i tiskarske usluge | D52: fotokopiranje,sl. | M52: 4000 | N52: 1000 | O52: 5000 | T52: 5000 | U52: 0 | V52: Izrav.ugovar.
A53: 35 | B53: 32396 | C53: Usluge čuvanja imovine i osoba | D53: zaštitarska služba | E53: 2500 | F53: 2600 | G53: 2600 | H53: 2000 | I53: 2000 | J53: 2500 | L53: Izrav.ugovar. | M53: 1760 | N53: 440 | O53: 2200 | P53: 2600 | Q53: 2600 | R53: 2000 | S53: 2000 | T53: 2200 | U53: 0 | V53: Izrav.ugovar.
A54: 36 | B54: 32922 | C54: Premije osiguranja ostale imovine | D54: Usluge osiguranja imovine | E54: 38000 | F54: 38700 | G54: 39700 | H54: 22000 | I54: 23000 | J54: 38000 | L54: Izrav.ugovar. | M54: 800 | N54: 200 | O54: 1000 | P54: 38700 | Q54: 39700 | R54: 22000 | S54: 23000 | T54: 1000 | U54: 0 | V54: Izrav.ugovar.
A55: 37 | B55: 32923 | C55: Premije osiguranjazaposlenih | D55: osiguranje zaposlenih | M55: 800 | N55: 200 | O55: 1000 | T55: 1000 | U55: 0 | V55: Izrav.ugovar.
A56: 38 | B56: 32931 | C56: Reprezentacija | D56: Razne prigode, ugošćivanja | E56: 18000 | F56: 18400 | G56: 18800 | H56: 11000 | I56: 11000 | J56: 18000 | L56: Izrav.ugovar. | M56: 800 | N56: 200 | O56: 1000 | P56: 18400 | Q56: 18800 | R56: 11000 | S56: 11000 | T56: 1000 | U56: 0 | V56: Izrav.ugovar.
A57: 39 | B57: 32941 | C57: Članarine | D57: članarine | M57: 1600 | N57: 400 | O57: 2000 | T57: 2000 | U57: 0 | V57: Izrav.ugovar.
A58: 40 | B58: 32999 | C58: Ostali nespom.rashodi poslovanja | D58: Ostali razni rashodi | E58: 1500 | F58: 1550 | G58: 1600 | H58: 1000 | I58: 1000 | J58: 1500 | L58: Izrav.ugovar. | M58: 24000 | N58: 6000 | O58: 30000 | P58: 1550 | Q58: 1600 | R58: 1000 | S58: 1000 | T58: 1000 | U58: 29000 | V58: Izrav.ugovar.
A59: 41 | B59: 34312 | C59: Usluge platnog prometa | D59: Bankarske usluge | E59: 19000 | F59: 19400 | G59: 19900 | H59: 12000 | I59: 12000 | J59: 19000 | L59: Izrav.ugovar. | M59: 2080 | N59: 520 | O59: 2600 | P59: 19400 | Q59: 19900 | R59: 12000 | S59: 12000 | T59: 2600 | U59: 0 | V59: Izrav.ugovar.
A60: 42 | C60: NABAVA NEPROIZ.I PROIZ.DUG.IMOV. | M60: =SUM(O60-N60) -> 9600 | N60: =SUM(N61:N63) -> 2400 | O60: =SUM(O61:O63) -> 12000 | P60: =SUM(P61:P63) -> 0 | Q60: 0 | R60: 0 | S60: 0 | T60: 8000 | U60: 4000
A61: 43 | B61: 42211 | C61: Računala i rač.oprema | D61: računala | M61: =SUM(O61-N61) -> 4000 | N61: 1000 | O61: 5000 | T61: 3000 | U61: =SUM(O61-T61) -> 2000 | V61: Izrav.ugovar.
A62: 44 | B62: 42273 | C62: Oprema | D62: oprema | M62: =SUM(O62-N62) -> 4000 | N62: =O62*20/100 -> 1000 | O62: 5000 | T62: 3000 | U62: =SUM(O62-T62) -> 2000 | V62: Izrav.ugovar.
A63: 45 | B63: 42411 | C63: Knjige | D63: knjige | M63: =SUM(O63-N63) -> 1600 | N63: 400 | O63: 2000 | T63: 2000 | U63: =SUM(O63-T63) -> 0 | V63: Izrav.ugovar.
A64: 46 | C64: SVEUKUPNO PLAN NABAVE ZA 2016 GODINU | E64: =SUM(#REF!+#REF!) ->  | F64: =SUM(#REF!+#REF!) ->  | G64: =SUM(#REF!+#REF!) ->  | H64: =SUM(#REF!+#REF!) ->  | I64: =SUM(#REF!+#REF!) ->  | J64: =SUM(#REF!+#REF!) ->  | K64: =SUM(#REF!+#REF!) ->  | M64: =SUM(M16+M19+M34+M60) -> 512880 | N64: 128220 | O64: 641100 | P64: 944412.9 | Q64: 972764.4983 | R64: 547170.9038 | S64: 566229.5182 | T64: 511100 | U64: 130000
J67: Za usvajanje prijedloga:
J68: PREDSJEDNIK UPRAVNOG VIJEĆA | U68: Ravnateljica:
J70: Paula Radišić Huzjan
U71: Mr.sc.Đana Baftiri,prof.def.

Sheet Rashodi (2)
B2: OŠ LJUDEVITA GAJA
B3: LJUDEVITA GAJA 2,10290 ZAPREŠIĆ
B4: OIB 11090108512
B6: Na temelju Zakona o javnoj nabavi i čl.62 Statuta škole ,na sjednici Školskog odbora
B7: _________________ održanoj _________________________________ godine donesen je
C10: PLAN NABAVE ZA 2011. GODINU
C11: (bez poreza na dodanu vrijednost)
A14: Red.br. | B14: Pozicija plana (konto) | C14: Predmet nabave | D14: NAZIV | E14: Procjenjena vrijdnost nabave | F14: Plan 2011. | G14: Plan 2012. | H14: PLAN 2011. | I14: PLAN 2012. | J14: Gradski proračun | K14: Ostali prihodi | L14: Postupak i način nabave | M14: procjenjena vriejd.bez PDV-a | N14: pdv | O14: planirana vrijdnost nabave sa PDV-om | P14: Plan 2011. | Q14: Plan 2012. | R14: PLAN 2011. | S14: PLAN 2012. | T14: IZVOR Gradski proračun | U14: SREDSTAVA Ostali prihodi | V14: Postupak i način nabave
C15: NAKNADA TROŠKOVA ZAPOSLENIMA | M15: 144000 | N15: 0 | O15: =SUM(O16:O22) -> 144000 | T15: =SUM(T16:T22) -> 138000 | U15: =SUM(O15-T15) -> 6000
A16: 1 | B16: 32111 | C16: Dnev.za služb.put u zemlji | D16: Usluga izobrazbe | E16: 3500 | F16: 5300 | G16: 5500 | H16: 3000 | I16: 3000 | J16: 3500 | M16: 48500 | N16: 0 | O16: 48500 | P16: 5300 | Q16: 5500 | R16: 3000 | S16: 3000 | T16: 43000 | U16: =SUM(O16-T16) -> 5500 | V16: usluge IIB
A17: 2 | B17: 32112 | C17: Dnev.za služb.put u inozem. | D17: Usluga izobrazbe | M17: 3000 | N17: 0 | O17: 3000 | T17: 3000 | U17: 0 | V17: usluge IIB
A18: 3 | B18: 32113 | C18: Nak.za smješt.na služb.putu u zemlji | D18: Usluga izobrazbe | E18: 6000 | F18: 8200 | G18: 8500 | H18: 5000 | I18: 5000 | J18: 6000 | M18: 20000 | N18: 0 | O18: 20000 | P18: 8200 | Q18: 8500 | R18: 5000 | S18: 5000 | T18: 20000 | U18: =SUM(O18-T18) -> 0 | V18: usluge IIB
A19: 4 | B19: 32115 | C19: Nak.za prijev.na služb.putu u zemlji | D19: Usluga izobrazbe | E19: 3000 | F19: 5150 | G19: 5300 | H19: 3000 | I19: 3000 | J19: 3000 | M19: 13000 | N19: 0 | O19: 13500 | P19: 5150 | Q19: 5300 | R19: 3000 | S19: 3000 | T19: 13000 | U19: =SUM(O19-T19) -> 500 | V19: usluge IIB
A20: 5 | B20: 32121 | C20: Nak.za prijevoz na posao i s posla | D20: Usluge javnog prijevoza | E20: 361000 | F20: 368600 | G20: 381900 | H20: 212000 | I20: 221000 | J20: 359480 | K20: 1520 | M20: 44000 | N20: 0 | O20: 44000 | P20: 368600 | Q20: 381900 | R20: 212000 | S20: 221000 | T20: 44000 | U20: =SUM(O20-T20) -> 0
A21: 6 | B21: 32131 | C21: Seminari, savjetovanja i simpoziji | D21: Stručno usavršavanje | E21: 8000 | F21: 12250 | G21: 12600 | H21: 7000 | I21: 7000 | J21: 8000 | K21: 0 | M21: 10000 | N21: 0 | O21: 10000 | P21: 12250 | Q21: 12600 | R21: 7000 | S21: 7000 | T21: 10000 | U21: =SUM(O21-T21) -> 0
A22: 7 | B22: 32132 | C22: Str.ispit i teč. | D22: Stručno usavršavanje | E22: 3000 | F22: 4100 | G22: 4200 | H22: 3000 | I22: 2000 | J22: 3000 | M22: 5000 | N22: 0 | O22: 5000 | P22: 4100 | Q22: 4200 | R22: 3000 | S22: 2000 | T22: 5000 | U22: =SUM(O22-T22) -> 0
A23: 8 | C23: NABAVA MATERIJAL I ENERGIJU | M23: =SUM(O23-N23) -> 1470324.968 | N23: =O23*18.6992/100 -> 338175.032 | O23: =SUM(O24+O25+O26+O27+O28+O29+O30+O60+O61+O62+O63+O64+O65+O66+O67+O68) -> 1808500 | P23: 626400 | Q23: 646100 | R23: 362000 | S23: 376000 | T23: 833000 | U23: 975500
A24: 9 | B24: 32211 | C24: Uredski materijal | D24: Razni uredski materijal | E24: 24000 | F24: 25500 | G24: 26200 | H24: 15000 | I24: 16000 | J24: 21400 | K24: 2600 | L24: Izrav.ugovar. | M24: 48780.48 | N24: 11219.52 | O24: 60000 | P24: 25500 | Q24: 26200 | R24: 15000 | S24: 16000 | T24: 60000 | U24: =SUM(O24-T24) -> 0 | V24: Izrav.ugovar.
A25: 10 | B25: 32212 | C25: Literatura | D25: Knjige, časopisi, brošure, | E25: 10000 | F25: 12250 | G25: 12600 | H25: 7000 | I25: 7000 | J25: 10000 | L25: Izrav.ugovar. | M25: 8130.08 | N25: 1869.92 | O25: 10000 | P25: 12250 | Q25: 12600 | R25: 7000 | S25: 7000 | T25: 10000 | U25: 0 | V25: čl.129
A26: 11 | B26: 32214 | C26: Mat.i sredstva za čišćenje i održ. | D26: sred.za čišćenje | E26: 8300 | F26: 112400 | G26: 115500 | H26: 65000 | I26: 67000 | J26: 5300 | K26: 3000 | L26: Izrav.ugovar. | M26: 49186.984 | N26: 11313.016 | O26: 60500 | P26: 112400 | Q26: 115500 | R26: 65000 | S26: 67000 | T26: 48000 | U26: 12500 | V26: Izrav.ugovar.
A27: 12 | B27: 32215 | C27: Služb, radna i zaš.odjeća i obuća | D27: Radna odjeća i obuća | E27: 25000 | F27: 34200 | G27: 35100 | H27: 20000 | I27: 21000 | J27: 25000 | L27: Izrav.ugovar. | M27: 8130.08 | N27: 1869.92 | O27: 10000 | P27: 34200 | Q27: 35100 | R27: 20000 | S27: 21000 | T27: 10000 | U27: 0 | V27: Izrav.ugovar.
A28: 13 | B28: 32216 | C28: Mat. za hig.potrebe i njegu | D28: wc papir,tek sapun, papirn.ručnici | E28: 10000 | F28: 15300 | G28: 15700 | H28: 9000 | I28: 9000 | J28: 10000 | L28: Izrav.ugovar. | M28: 52845.52 | N28: 12154.48 | O28: 65000 | P28: 15300 | Q28: 15700 | R28: 9000 | S28: 9000 | T28: 50000 | U28: 15000 | V28: Izrav.ugovar.
A29: 14 | B29: 32219 | C29: Ost.mat.za potrebe red.poslovanja | D29: Ostali razni materijal | E29: 4000 | F29: 4100 | G29: 4200 | H29: 2000 | I29: 3000 | J29: 4000 | L29: Izrav.ugovar. | M29: 406.504 | N29: 93.496 | O29: 500 | P29: 4100 | Q29: 4200 | R29: 2000 | S29: 3000 | T29: 500 | U29: 0 | V29: Izrav.ugovar.
A30: 15 | B30: 32224 | C30: Namirnice | F30: 1444200 | G30: 1483200 | H30: 840000 | I30: 856000 | M30: 782113.696 | N30: 179886.304 | O30: =SUM(O31:O59) -> 962000 | P30: 0 | Q30: 0 | R30: 0 | S30: 0 | T30: 202000 | U30: 760000
A31: 16 | B31: " | C31: Krušni proizvodi | D31: Kruh i pekarski proizvodi | E31: 40715.8 | J31: 40715.8 | L31: Izrav.ugovar. | M31: 44715.44 | N31: 10284.56 | O31: 55000 | T31: 55000 | U31: =SUM(O31-T31) -> 0 | V31: Izrav.ugovar.
A32: 17 | B32: " | C32: Peciva i kolači | D32: Peciva i kolači | E32: 29090 | J32: 29090 | L32: Izrav.ugovar. | M32: 56910.56 | N32: 13089.44 | O32: 70000 | U32: 70000 | V32: Izrav.ugovar.
A33: 18 | B33: " | C33: Brašnasti proizvodi | D33: Tjestenine, špageti, mlinci | E33: 18888 | J33: 18888 | L33: Izrav.ugovar. | M33: 20325.2 | N33: 4674.8 | O33: 25000 | U33: 25000 | V33: Izrav.ugovar.
A34: 19 | B34: " | C34: Keksi i krušne mrvice | D34: Keksi i krušne mrvice | E34: 40260 | J34: 40260 | L34: Izrav.ugovar. | M34: 17886.176 | N34: 4113.824 | O34: 22000 | U34: 22000 | V34: Izrav.ugovar.
A35: 20 | B35: " | C35: Mlijeko | D35: Mlijeko | E35: 68220 | J35: 68220 | L35: Izrav.ugovar. | M35: 52845.52 | N35: 12154.48 | O35: 65000 | T35: 65000 | U35: 0 | V35: Izrav.ugovar.
A36: 21 | B36: " | C36: Vrhnje i kiselo mlijeko | D36: Vrhnje i kiselo mlijeko | E36: 20000 | J36: 20000 | L36: Izrav.ugovar. | M36: 8130.08 | N36: 1869.92 | O36: 10000 | U36: 10000 | V36: Izrav.ugovar.
A37: 22 | B37: " | C37: Maslac | D37: Maslac, margo | E37: 22147.55 | J37: 22147.55 | L37: Izrav.ugovar. | M37: 8130.08 | N37: 1869.92 | O37: 10000 | U37: 10000 | V37: Izrav.ugovar.
A38: 23 | B38: " | C38: sladoledi | D38: sladoledi | E38: 15760 | J38: 15760 | L38: Izrav.ugovar. | M38: 24390.24 | N38: 5609.76 | O38: 30000 | U38: 30000 | V38: Izrav.ugovar.
A39: 24 | B39: " | C39: Tvrdi sir | D39: Tvrdi sir | E39: 24000 | J39: 24000 | L39: Izrav.ugovar. | M39: 16260.16 | N39: 3739.84 | O39: 20000 | U39: 20000 | V39: Izrav.ugovar.
A40: 25 | B40: " | C40: Sirni namazi | D40: Sirni namazi | E40: 12000 | J40: 12000 | L40: Izrav.ugovar. | M40: 12195.12 | N40: 2804.88 | O40: 15000 | U40: 15000 | V40: Izrav.ugovar.
A41: 26 | B41: " | C41: Ostali ferm.proizvodi | D41: Kiselo mlijeko, acedofil, i sl. | E41: 17000 | J41: 17000 | L41: Izrav.ugovar. | M41: 36585.36 | N41: 8414.64 | O41: 45000 | U41: 45000 | V41: Izrav.ugovar.
A42: 27 | B42: " | C42: Jogurt | D42: Jogurt, voćni jogurti | E42: 66000 | J42: 66000 | L42: Izrav.ugovar. | M42: 32520.32 | N42: 7479.68 | O42: 40000 | U42: 40000 | V42: Izrav.ugovar.
A43: 28 | B43: " | C43: Junetina | D43: Junetina | E43: 69000 | J43: 69000 | L43: Izrav.ugovar. | M43: 24390.24 | N43: 5609.76 | O43: 30000 | U43: 30000 | V43: Izrav.ugovar.
A44: 29 | B44: " | C44: Teletina | D44: Teletina | M44: 24390.24 | N44: 5609.76 | O44: 30000 | U44: 30000 | V44: Izrav.ugovar.
A45: 30 | B45: " | C45: Svinjetina | D45: Svinjetina but | E45: 29280 | J45: 29280 | L45: Izrav.ugovar. | M45: 20325.2 | N45: 4674.8 | O45: 25000 | U45: 25000 | V45: Izrav.ugovar.
A46: 31 | B46: " | C46: Mljeveno meso | D46: Mljeveno meso | E46: 60000 | J46: 60000 | L46: Izrav.ugovar. | M46: 20325.2 | N46: 4674.8 | O46: 25000 | U46: 25000 | V46: Izrav.ugovar.
A47: 32 | B47: " | C47: Konzervirani proizvodi od mesa | D47: Konzervirani proizv. od mesa | E47: 59500 | J47: 59500 | L47: Izrav.ugovar. | M47: 24390.24 | N47: 5609.76 | O47: 30000 | U47: 30000 | V47: Izrav.ugovar.
A48: 33 | B48: " | C48: Perad | D48: Perad | E48: 65000 | J48: 65000 | L48: Izrav.ugovar. | M48: 36585.36 | N48: 8414.64 | O48: 45000 | U48: 45000 | V48: Izrav.ugovar.
A49: 34 | B49: " | C49: Riblji fileti i ostalo riblje meso | D49: Riblji proizvodi | E49: 58000 | J49: 58000 | L49: Izrav.ugovar. | M49: 12195.12 | N49: 2804.88 | O49: 15000 | U49: 15000 | V49: Izrav.ugovar.
A50: 35 | B50: " | C50: Životinjska i biljna ulja | D50: Ulje | E50: 39751 | J50: 39751 | L50: Izrav.ugovar. | M50: 6504.064 | N50: 1495.936 | O50: 8000 | U50: 8000 | V50: Izrav.ugovar.
A51: 36 | B51: " | C51: Povrće | D51: Svježe povrće | E51: 83267.42 | J51: 83267.42 | L51: Izrav.ugovar. | M51: 24390.24 | N51: 5609.76 | O51: 30000 | U51: 30000 | V51: Izrav.ugovar.
A52: 37 | B52: " | C52: Voće | D52: Voće | E52: 84777.3 | J52: 84777.3 | L52: Izrav.ugovar. | M52: 69918.688 | N52: 16081.312 | O52: 86000 | T52: 82000 | U52: 4000 | V52: Izrav.ugovar.
A53: 38 | B53: " | C53: Prerađeno povrće | D53: Prerađeno povrće | E53: 39127.2 | J53: 39127.2 | L53: Izrav.ugovar. | M53: 16260.16 | N53: 3739.84 | O53: 20000 | U53: 20000 | V53: Izrav.ugovar.
A54: 39 | B54: " | C54: Prerađeno voće i oraš.proizvodi | D54: Prerađeno voće | E54: 50000 | J54: 50000 | L54: Izrav.ugovar. | M54: 12195.12 | N54: 2804.88 | O54: 15000 | U54: 15000 | V54: Izrav.ugovar.
A55: 40 | B55: " | C55: Proizvodi od zrna žitarica | D55: Proizvodi od zrna žitarica | E55: 17933.9 | J55: 17933.9 | L55: Izrav.ugovar. | M55: =SUM(O55-N55) -> 24390.24 | N55: =O55*18.6992/100 -> 5609.76 | O55: 30000 | U55: 30000 | V55: Izrav.ugovar.
A56: 41 | B56: " | C56: Šećer | D56: Šećer | E56: 15239.1 | J56: 15239.1 | L56: Izrav.ugovar. | M56: 4878.048 | N56: 1121.952 | O56: 6000 | U56: 6000 | V56: Izrav.ugovar.
A57: 42 | B57: " | C57: med | D57: med | E57: 24275 | J57: 24275 | L57: Izrav.ugovar. | M57: 2439.024 | N57: 560.976 | O57: 3000 | U57: 3000 | V57: Izrav.ugovar.
A58: 43 | B58: " | C58: Zamrznuti proizvodi | D58: Duboko zamrznuti proizvodi | E58: 21000 | J58: 21000 | L58: Izrav.ugovar. | M58: 16260.16 | N58: 3739.84 | O58: 20000 | U58: 20000 | V58: Izrav.ugovar.
A59: 44 | B59: " | C59: ostalo | D59: Ocat, umaci,čaj,jaja ,začini i sl. | E59: 9588.56 | J59: 9588.56 | K59: 0 | L59: Izrav.ugovar. | M59: 111382.096 | N59: 25617.904 | O59: 137000 | U59: 137000 | V59: Izrav.ugovar.
A60: 45 | B60: 32222 | C60: Pomoćni materijal | D60: Pot.materijal za grupe | E60: 50600 | F60: 53200 | G60: 57300 | H60: 31000 | I60: 33000 | J60: 30176 | K60: 20424 | L60: Izrav.ugovar. | M60: 406.504 | N60: 93.496 | O60: 500 | P60: 53200 | Q60: 57300 | R60: 31000 | S60: 33000 | T60: 500 | V60: Izrav.ugovar.
A61: 46 | B61: 32229 | C61: Ostali mat.i sirovine | D61: mat.za nastavu,održ.prost. | M61: 40650.4 | N61: 9349.6 | O61: 50000 | T61: 50000 | V61: Izrav.ugovar.
A62: 47 | B62: 32231 | C62: Električna energija | D62: Električna energija | E62: 65000 | F62: 66150 | G62: 67900 | H62: 38000 | I62: 40000 | J62: 55000 | K62: 10000 | L62: Izrav.ugovar. | M62: 117886.16 | N62: 27113.84 | O62: 145000 | P62: 66150 | Q62: 67900 | R62: 38000 | S62: 40000 | T62: 115000 | U62: 30000 | V62: otvoreni
A63: 48 | B63: 32233 | C63: Plin | D63: Plin | E63: 135000 | F63: 137300 | G63: 141100 | H63: 79000 | I63: 81000 | J63: 125000 | K63: 10000 | L63: Izrav.ugovar. | M63: 258536.544 | N63: 59463.456 | O63: 318000 | P63: 137300 | Q63: 141100 | R63: 79000 | S63: 81000 | T63: 170000 | U63: =SUM(O63-T63) -> 148000 | V63: otvoreni
A64: 49 | B64: 32234 | C64: Motorni benzin i dizel gorivo | D64: Motorni benzin i dizel gorivo | E64: 15000 | F64: 15300 | G64: 15700 | H64: 9000 | I64: 10000 | J64: 15000 | L64: Izrav.ugovar. | M64: 48780.48 | N64: 11219.52 | O64: 60000 | P64: 15300 | Q64: 15700 | R64: 9000 | S64: 10000 | T64: 60000 | U64: 0 | V64: Izrav.ugovar.
A65: 50 | B65: 32241 | C65: Mat.i dij.za tek.i inv.održ.građ. | D65: Boje , staklo i dr.mat. | E65: 97000 | F65: 112900 | G65: 116000 | H65: 65000 | I65: 67000 | J65: 97000 | L65: Izrav.ugovar. | M65: 16260.16 | N65: 3739.84 | O65: 20000 | P65: 112900 | Q65: 116000 | R65: 65000 | S65: 67000 | T65: 20000 | U65: 0 | V65: Izrav.ugovar.
A66: 51 | B66: 32242 | C66: Mat.i dij.za tek.i inv.održ.postr.i opr. | D66: Mat.i dij.za održ.postr.i opr. | E66: 20000 | F66: 20400 | G66: 20900 | H66: 12000 | I66: 12000 | J66: 20000 | L66: Izrav.ugovar. | M66: 13008.128 | N66: 2991.872 | O66: 16000 | P66: 20400 | Q66: 20900 | R66: 12000 | S66: 12000 | T66: 6000 | U66: 10000 | V66: Izrav.ugovar.
A67: 52 | B67: 32243 | C67: Mat.i dij.za tek.i inv.održ.trans.sred. | D67: razni dijel. | E67: 7000 | F67: 7200 | G67: 7400 | H67: 4000 | I67: 4000 | J67: 7000 | L67: Izrav.ugovar. | M67: 813.008 | N67: 186.992 | O67: 1000 | P67: 7200 | Q67: 7400 | R67: 4000 | S67: 4000 | T67: 1000 | U67: 0 | V67: Izrav.ugovar.
A68: 53 | B68: 32251 | C68: Sitni inventar | D68: Oprema za ustanovu | E68: 10000 | F68: 10200 | G68: 10500 | H68: 6000 | I68: 6000 | J68: 10000 | L68: Izrav.ugovar. | M68: 24390.24 | N68: 5609.76 | O68: 30000 | P68: 10200 | Q68: 10500 | R68: 6000 | S68: 6000 | T68: 30000 | U68: 0 | V68: Izrav.ugovar.
A69: 54 | C69: NABAVA USLUGA | M69: 707235.6592 | N69: 162664.3408 | O69: =SUM(O70+O71+O72+O73+O76+O79+O80+O81+O82+O83+O84+O85+O86+O87+O88+O89+O90+O91+O92+O93+O94+O95+O96+O97+O98+O99+O100+O101+O102+O103+O104+O109+O110+O111) -> 869900 | P69: 507567 | Q69: 521244.459 | R69: 295586.7308 | S69: 305602.5725 | T69: 427400 | U69: 442500
A70: 55 | B70: 32311 | C70: Usluge telefona, telefaksa | D70: Telekom | E70: 28000 | F70: 28500 | G70: 29300 | H70: 17000 | I70: 17000 | J70: 28000 | L70: Izrav.ugovar. | M70: 27235.768 | N70: 6264.232 | O70: 33500 | P70: 28500 | Q70: 29300 | R70: 17000 | S70: 17000 | T70: 30000 | U70: =SUM(O70-T70) -> 3500 | V70: Izrav.ugovar.
A71: 56 | B71: 32312 | C71: Usluge interneta | D71: Internet | M71: 1219.512 | N71: 280.488 | O71: 1500 | T71: 1500 | U71: 0
A72: 57 | B72: 32313 | C72: Poštarina (pisma, tiskanice i sl.) | D72: Poštanske usluge | E72: 5000 | F72: 5100 | G72: 5300 | H72: 3000 | I72: 3000 | J72: 5000 | L72: Izrav.ugovar. | M72: 6504.064 | N72: 1495.936 | O72: 8000 | P72: 5100 | Q72: 5300 | R72: 3000 | S72: 3000 | T72: 8000 | U72: 0 | V72: Izrav.ugovar.
A73: 58 | B73: 32319 | C73: Ost.usluge za komunik.i prijevoz | D73: Usluge cestovnog prijevoza | E73: 39100 | F73: 39750 | G73: 40800 | H73: 23000 | I73: 24000 | J73: 39100 | L73: Izrav.ugovar. | M73: 99186.976 | N73: 22813.024 | O73: 122000 | P73: 39750 | Q73: 40800 | R73: 23000 | S73: 24000 | T73: 70000 | U73: 52000 | V73: Izrav.ugovar.
A74: 59 | C74: prijevoz učenika | M74: 48780.48 | N74: 11219.52 | O74: 60000 | T74: 60000 | U74: 0 | V74: Izrav.ugovar.
A75: 60 | C75: prijevoz uč.u kazališe ,kino. | M75: 42276.416 | N75: 9723.584 | O75: 52000 | T75: 0 | U75: 52000 | V75: Izrav.ugovar.
A76: 61 | B76: 32321 | C76: Usl.tek.i inv.održ.građ.objekata | D76: Održavanje objekata | E76: 75000 | F76: 76300 | G76: 78400 | H76: 44000 | I76: 45000 | J76: 75000 | L76: Izrav.ugovar. | M76: 98373.968 | N76: 22626.032 | O76: 121000 | P76: 76300 | Q76: 78400 | R76: 44000 | S76: 45000 | T76: 61000 | U76: 60000 | V76: Izrav.ugovar.
A77: 62 | C77: red.održavanje | M77: 49593.488 | N77: 11406.512 | O77: 61000 | T77: 61000 | U77: 0 | V77: Izrav.ugovar.
A78: 63 | C78: zamjena parke.u 3 učionoce | M78: 48780.48 | N78: 11219.52 | O78: 60000 | T78: 0 | U78: 60000 | V78: Izrav.ugovar.
A79: 64 | B79: 32322 | C79: Usl.tek.i inv.održ.postroj.i opreme | D79: Održavanej opreme | E79: 57000 | F79: 58000 | G79: 59600 | H79: 33000 | I79: 35000 | J79: 57000 | L79: Izrav.ugovar. | M79: 16260.16 | N79: 3739.84 | O79: 20000 | P79: 58000 | Q79: 59600 | R79: 33000 | S79: 35000 | T79: 20000 | U79: 0 | V79: Izrav.ugovar.
A80: 65 | B80: 32329 | C80: Ost.usl. tek. i INVO | D80: Ostali popravci | E80: 0 | F80: =SUM(E80*1.7/100)+E80 -> 0 | G80: =SUM(F80*2.7/100)+F80 -> 0 | H80: =SUM(F80/26*15) -> 0 | I80: =SUM(G80/26*15) -> 0 | J80: 0 | L80: Izrav.ugovar. | M80: 813.008 | N80: 186.992 | O80: 1000 | P80: =SUM(O80*1.7/100)+O80 -> 1017 | Q80: =SUM(P80*2.7/100)+P80 -> 1044.459 | R80: =SUM(P80/26*15) -> 586.7307692 | S80: =SUM(Q80/26*15) -> 602.5725 | T80: 1000 | U80: 0 | V80: Izrav.ugovar.
A81: 66 | B81: 32332 | C81: Tisak | D81: Usluge promidžbe | E81: 10000 | F81: 10200 | G81: 10500 | H81: 6000 | I81: 6000 | J81: 10000 | L81: Izrav.ugovar. | M81: 8130.08 | N81: 1869.92 | O81: 10000 | P81: 10200 | Q81: 10500 | R81: 6000 | S81: 6000 | T81: 10000 | U81: 0 | V81: Izrav.ugovar.
A82: 67 | B82: 32339 | C82: Ost.usl.promidžbe i informiranja | D82: Usluge promidžbe | E82: 7000 | F82: 7200 | G82: 7400 | H82: 4000 | I82: 5000 | J82: 7000 | L82: Izrav.ugovar. | M82: 3252.032 | N82: 747.968 | O82: 4000 | P82: 7200 | Q82: 7400 | R82: 4000 | S82: 5000 | T82: 4000 | U82: 0 | V82: Izrav.ugovar.
A83: 68 | B83: 32341 | C83: Opskrba vodom | D83: Pitka voda | E83: 75000 | F83: 76300 | G83: 78400 | H83: 44000 | I83: 45000 | J83: 75000 | L83: Izrav.ugovar. | M83: 36585.36 | N83: 8414.64 | O83: 45000 | P83: 76300 | Q83: 78400 | R83: 44000 | S83: 45000 | T83: 25000 | U83: 20000 | V83: Izrav.ugovar.
A84: 69 | B84: 32342 | C84: Iznošenje i odvoz smeća | D84: Komunalne usluge | E84: 6000 | F84: 6150 | G84: 6300 | H84: 3000 | I84: 4000 | J84: 6000 | L84: Izrav.ugovar. | M84: 24390.24 | N84: 5609.76 | O84: 30000 | P84: 6150 | Q84: 6300 | R84: 3000 | S84: 4000 | T84: 18000 | U84: 12000 | V84: Izrav.ugovar.
A85: 70 | B85: 32343 | C85: Deratizacija i dezinsekcija | D85: Usluge deratizacije | E85: 5000 | F85: 5100 | G85: 5300 | H85: 3000 | I85: 3000 | J85: 5000 | L85: Izrav.ugovar. | M85: 1626.016 | N85: 373.984 | O85: 2000 | P85: 5100 | Q85: 5300 | R85: 3000 | S85: 3000 | T85: 2000 | U85: 0 | V85: Izrav.ugovar.
A86: 71 | B86: 32344 | C86: Dimnjačarske i ekološke usluge | D86: Ekološke i dimnj.usluge | E86: 15000 | F86: 15300 | G86: 15700 | H86: 9000 | I86: 9000 | J86: 15000 | L86: Izrav.ugovar. | M86: 4065.04 | N86: 934.96 | O86: 5000 | P86: 15300 | Q86: 15700 | R86: 9000 | S86: 9000 | T86: 5000 | U86: 0 | V86: Izrav.ugovar.
A87: 72 | B87: 32345 | C87: Us.pranja i čišć. | D87: Usluge pranja tekstil,zavjesa i dr. | E87: 55000 | F87: 56000 | G87: 57500 | H87: 32000 | I87: 33000 | J87: 55000 | L87: Izrav.ugovar. | M87: =SUM(O87-N87) -> 406.504 | N87: =O87*18.6992/100 -> 93.496 | O87: 500 | P87: 56000 | Q87: 57500 | R87: 32000 | S87: 33000 | T87: 500 | U87: 0 | V87: Izrav.ugovar.
A88: 73 | B88: 32349 | C88: Ostale komunalne usluge | D88: Razne usluge,ispumpavanje | E88: 3000 | F88: 3100 | G88: 3200 | H88: 2000 | I88: 2000 | J88: 3000 | L88: Izrav.ugovar. | M88: 406.504 | N88: 93.496 | O88: 500 | P88: 3100 | Q88: 3200 | R88: 2000 | S88: 2000 | T88: 500 | U88: 0 | V88: Izrav.ugovar.
A89: 74 | B89: 32361 | C89: Obvezni preventivni zdr.pregledi | D89: Razne zdrav.usluge | E89: 2000 | F89: 2050 | G89: 2100 | H89: 2000 | I89: 2000 | J89: 2000 | L89: Izrav.ugovar. | M89: 24390.24 | N89: 5609.76 | O89: 30000 | P89: 2050 | Q89: 2100 | R89: 2000 | S89: 2000 | T89: 28000 | U89: 2000 | V89: Izrav.ugovar.
A90: 75 | B90: 32372 | C90: Ugovori o djelu | D90: Ugovor o djelu | E90: 3000 | F90: 3100 | G90: 3200 | H90: 2000 | I90: 2000 | J90: 3000 | L90: Izrav.ugovar. | M90: 12195.12 | N90: 2804.88 | O90: 15000 | P90: 3100 | Q90: 3200 | R90: 2000 | S90: 2000 | T90: 5000 | U90: 10000 | V90: Izrav.ugovar.
A91: 76 | B91: 32377 | C91: Usluge agen.,stud.serv. | D91: usluge agen. | M91: 406.504 | N91: 93.496 | O91: 500 | T91: 500 | U91: 0 | V91: Izrav.ugovar.
A92: 77 | B92: 32379 | C92: Ostale intelektualne usluge | D92: Usluge izobrazbe | E92: 5000 | F92: 5100 | G92: 5300 | H92: 3000 | I92: 3000 | J92: 5000 | L92: Izrav.ugovar. | M92: 406.504 | N92: 93.496 | O92: 500 | P92: 5100 | Q92: 5300 | R92: 3000 | S92: 3000 | T92: 500 | U92: 0 | V92: Izrav.ugovar.
A93: 78 | B93: 32381 | C93: Usluge ažur.rač.baze | D93: Izhmjene programa, održav. | E93: 9000 | F93: 9200 | G93: 9400 | H93: 5000 | I93: 6000 | J93: 9000 | L93: Izrav.ugovar. | M93: 8130.08 | N93: 1869.92 | O93: 10000 | P93: 9200 | Q93: 9400 | R93: 5000 | S93: 6000 | T93: 10000 | U93: 0 | V93: Izrav.ugovar.
A94: 79 | B94: 32389 | C94: Ostele rač.usluge | D94: rač.usluge | M94: 4065.04 | N94: 934.96 | O94: 5000 | T94: 5000 | U94: 0
A95: 80 | B95: 32391 | C95: grafičke i tiskarske usluge | M95: 6504.064 | N95: 1495.936 | O95: 8000 | T95: 8000 | U95: 0 | V95: Izrav.ugovar.
A96: 81 | B96: 32392 | C96: Filim i izrada slika | D96: usluge | M96: 8943.088 | N96: 2056.912 | O96: 11000 | T96: 1000 | U96: 10000
A97: 82 | B97: 32393 | C97: uređenje prostora | M97: 8130.08 | N97: 1869.92 | O97: 10000 | T97: 10000 | U97: 0 | V97: Izrav.ugovar.
A98: 83 | B98: 32399 | C98: Ostale nespomenute usluge | E98: 2500 | F98: 2600 | G98: 2600 | H98: 2000 | I98: 2000 | J98: 2500 | L98: Izrav.ugovar. | M98: 406.504 | N98: 93.496 | O98: 500 | P98: 2600 | Q98: 2600 | R98: 2000 | S98: 2000 | T98: 500 | U98: 0 | V98: Izrav.ugovar.
A99: 84 | B99: 32911 | C99: Nak.član.pred.i izvrš.tijela | D99: Naknade članovima vijeća | E99: 15000 | F99: 15300 | G99: 15700 | H99: 9000 | I99: 9000 | J99: 15000 | L99: Izrav.ugovar. | M99: 28455.28 | N99: 6544.72 | O99: 35000 | P99: 15300 | Q99: 15700 | R99: 9000 | S99: 9000 | T99: 35000 | U99: 0 | V99: Izrav.ugovar.
A100: 85 | B100: 32922 | C100: Premije osiguranja ostale imovine | D100: Usluge osiguranja imovine | E100: 38000 | F100: 38700 | G100: 39700 | H100: 22000 | I100: 23000 | J100: 38000 | L100: Izrav.ugovar. | M100: 8943.088 | N100: 2056.912 | O100: 11000 | P100: 38700 | Q100: 39700 | R100: 22000 | S100: 23000 | T100: 11000 | U100: 0 | V100: Izrav.ugovar.
A101: 86 | B101: 32922 | C101: premija osiguranja učenika | M101: 20325.2 | N101: 4674.8 | O101: 25000 | T101: 25000 | U101: 0 | V101: Izrav.ugovar.
A102: 87 | B102: 32931 | C102: Reprezentacija | D102: Razne prigode, ugošćivanja | E102: 18000 | F102: 18400 | G102: 18800 | H102: 11000 | I102: 11000 | J102: 18000 | L102: Izrav.ugovar. | M102: 14634.144 | N102: 3365.856 | O102: 18000 | P102: 18400 | Q102: 18800 | R102: 11000 | S102: 11000 | T102: 10000 | U102: 8000 | V102: Izrav.ugovar.
A103: 88 | B103: 32941 | C103: članarine | M103: 3252.032 | N103: 747.968 | O103: 4000 | T103: 4000 | U103: 0 | V103: Izrav.ugovar.
A104: 89 | B104: 32999 | C104: Ostali nespom.rashodi poslovanja | D104: Ostali razni rashodi | E104: 1500 | F104: 1550 | G104: 1600 | H104: 1000 | I104: 1000 | J104: 1500 | L104: Izrav.ugovar. | M104: 218699.152 | N104: 50300.848 | O104: 269000 | P104: 1550 | Q104: 1600 | R104: 1000 | S104: 1000 | T104: 4000 | U104: 265000 | V104: Izrav.ugovar.
A105: 90 | C105: posjet kazalištu,kinu | M105: 34959.344 | N105: 8040.656 | O105: 43000 | T105: 0 | U105: =SUM(O105-T105) -> 43000 | V105: Izrav.ugovar.
A106: 91 | C106: časopisi,nast.listići | M106: 33333.328 | N106: 7666.672 | O106: 41000 | T106: 0 | U106: 41000 | V106: Izrav.ugovar.
A107: 92 | C107: izleti,terenska nastava | M107: 115447.136 | N107: 26552.864 | O107: 142000 | T107: 0 | U107: 142000 | V107: Izrav.ugovar.
A108: 93 | C108: human.akcije,ostalo | M108: 34959.344 | N108: 8040.656 | O108: 43000 | T108: 4000 | U108: 39000 | V108: Izrav.ugovar.
A109: 94 | B109: 34312 | C109: Usluge platnog prometa | D109: Bankarske usluge | E109: 19000 | F109: 19400 | G109: 19900 | H109: 12000 | I109: 12000 | J109: 19000 | L109: Izrav.ugovar. | M109: 7317.072 | N109: 1682.928 | O109: 9000 | P109: 19400 | Q109: 19900 | R109: 12000 | S109: 12000 | T109: 9000 | U109: 0 | V109: Izrav.ugovar.
A110: 95 | B110: 34333 | C110: Zatez.kte iz poslov.odnosa i dr. | D110: Kamata na neprav.plaćanja | E110: 2500 | F110: 2600 | G110: 2600 | H110: 2000 | I110: 2000 | J110: 2500 | L110: Izrav.ugovar. | M110: 1626.016 | N110: 373.984 | O110: 2000 | P110: 2600 | Q110: 2600 | R110: 2000 | S110: 2000 | T110: 2000 | U110: 0 | V110: Izrav.ugovar.
A111: 96 | B111: 38129 | C111: ostale tek.donacije u naravi | E111: 1500 | F111: 1550 | G111: 1600 | H111: 1000 | I111: 1000 | J111: 1500 | L111: Izrav.ugovar. | M111: 1951.2192 | N111: 448.7808 | O111: 2400 | P111: 1550 | Q111: 1600 | R111: 1000 | S111: 1000 | T111: 2400 | U111: 0 | V111: Izrav.ugovar.
A112: 97 | C112: NABAVA NEPROIZ.I PROIZ.DUG.IMOV. | M112: 170731.68 | N112: 39268.32 | O112: =SUM(O113:O114) -> 210000 | P112: 0 | Q112: 0 | R112: 0 | S112: 0 | T112: 210000 | U112: 0
A113: 98 | B113: 41261 | C113: Projektna dokumentacija | M113: 162601.6 | N113: 37398.4 | O113: 200000 | T113: 200000 | U113: =SUM(O113-T113) -> 0 | V113: otvoreni
A114: 99 | B114: 42273 | C114: oprema | M114: 8130.08 | N114: 1869.92 | O114: 10000 | T114: 10000 | U114: =SUM(O114-T114) -> 0 | V114: Izrav.ugovar.
A115: 100 | C115: UKUPNO PLAĆE BORAVAK I PSIHOLOG | M115: 710100 | O115: =SUM(O117+O116) -> 710100 | P115: 0 | Q115: 0 | R115: 0 | S115: 0 | T115: 710100 | U115: 0
A116: 101 | B116: 31-313 | C116: plaće - boravak | M116: =SUM(O116-N116) -> 602000 | N116: 0 | O116: 602000 | T116: 602000 | U116: =SUM(O116-T116) -> 0
A117: 102 | B117: 31-313 | C117: plaća- psihologa | M117: =SUM(O117-N117) -> 108100 | N117: 0 | O117: 108100 | T117: 108100 | U117: =SUM(O117-T117) -> 0
A118: 103 | C118: SVEUKUPNO PLAN NABAVE ZA 2011 GODINU | E118: =SUM(#REF!+#REF!) ->  | F118: =SUM(#REF!+#REF!) ->  | G118: =SUM(#REF!+#REF!) ->  | H118: =SUM(#REF!+#REF!) ->  | I118: =SUM(#REF!+#REF!) ->  | J118: =SUM(#REF!+#REF!) ->  | K118: =SUM(#REF!+#REF!) ->  | O118: =SUM(O115+O112+O69+O23+O15) -> 3742500 | P118: 1133967 | Q118: 1167344.459 | R118: 657586.7308 | S118: 681602.5725 | T118: 2318500 | U118: 1424000
J121: Za usvajanje prijedloga:
C122: Ravnateljica škole: | J122: PREDSJEDNIK UPRAVNOG VIJEĆA | U122: Predsjednik školskog odbora:
C123: Đurđica Šepac,dipl.inž.biol.
J124: Paula Radišić Huzjan

Sheet Broj djece (hidden)
E2: 1
A3: JLS | B3: God. plan | C3: Mj. plan | D3: Uk.br. djece | E3: =Prihodi!#REF! ->  | F3: % | G3: Broj djece po mjesecima
G4: 1 | H4: 2 | I4: 3 | J4: 4 | K4: 5 | L4: 6 | M4: 7 | N4: 8 | O4: 9 | P4: 10 | Q4: 11 | R4: 12
A5: Grad Zaprešić
A6: Općina Brdovec
A7: Općina Marija Gorica
A8: Općina Pušća
A9: Ukupno | B9: =SUM(B5:B8) -> 0 | C9: =B9/12 -> 0 | D9: =SUM(G9:R9) -> 0 | G9: =SUM(G5:G8) -> 0 | H9: 0 | I9: 0 | J9: 0 | K9: 0 | L9: 0 | M9: 0 | N9: 0 | O9: 0 | P9: 0 | Q9: 0 | R9: 0
O12: Ravnatelj:
O15: _____________________

Sheet Zaduženja roditelja (hidden)
A2: R. br. | B2: JLS | C2: Ukupno zaduženje roditelja | D2: Zaduženje roditelja po mjesecima
D3: 1 | E3: 2 | F3: 3 | G3: 4 | H3: 5 | I3: 6 | J3: 7 | K3: 8 | L3: 9 | M3: 10 | N3: 11 | O3: 12
A4: 1 | B4: Grad Zaprešić | C4: =SUM(D4:O4) -> 0
A5: 2 | B5: Općina Brdovec | C5: =SUM(D5:O5) -> 0
A6: 3 | B6: Općina M.Gorica | C6: =SUM(D6:O6) -> 0
A7: 4 | B7: Općina Pušća | C7: =SUM(D7:O7) -> 0
B8: Ukupno | C8: =SUM(D8:O8) -> 0 | D8: =SUM(D4:D7) -> 0 | E8: 0 | F8: 0 | G8: 0 | H8: 0 | I8: 0 | J8: 0 | K8: 0 | L8: 0 | M8: 0 | N8: 0 | O8: 0
M11: Ravnatelj:
M14: ______________________

Sheet Obračun (hidden)
A5: Izračun stvarne ekonomske cijene (predškolski odgoj i obrazovanje + oprema)
A6: Ukupno ostvareni rashodi: | E6: =SUM(Rashodi!#REF!)+SUM(Rashodi!#REF!) -> 
A7: - plaća za prosinac 2009.
A8: + plaća za tekući mjesec (isplata u sljedećem mjesecu)
A9: - predškola
A10: Ukupni rashodi za obračun: | E10: =E6-E7+E8-E9 -> 
A11: Ukupan broj djece: | E11: ='Broj djece'!D9 -> 0
A12: Ostvarena cijena po djetetu: | E12: =E10/E11 -> 
A16: Obračun za Grad Zaprešić
A18: Broj djece | B18: Cijena/dijete | C18: Ukupni izdaci (1x2) | D18: Zaduženje roditelja | E18: Zaduženje Grada za red.program (3-4) | F18: Zaduženje Grada za predškolu (bez sred. MZOIS) | G18: Zaduženje Grada za kapitalna ulaganja | I18: Uplate Grada | J18: Obračunati vl. i ostali prihodi | K18: Razlika tekuće godine za Grad (5+6+7+8-9-10)
G19: stolarija | H19: adap.kuh.
A20: 1 | B20: 2 | C20: 3 | D20: 4 | E20: 5 | F20: 6 | G20: 7 | H20: 8 | I20: 9 | J20: 10 | K20: 11
E21: =C21-D21 -> 0 | G21: =SUM(Rashodi!#REF!) ->  | H21: =SUM(Rashodi!#REF!) ->  | I21: =Prihodi!#REF!+Prihodi!#REF! -> 
I23: Početno stanje 01.01.2010.
I24: Razlika tekuće godine + PS | K24: =K21+K23 -> 0
J28: Ravnatelj:
J31: ______________________
